Cogmind - Beta 9.4 @@@ ROGUE MODE // 2020.03.08 @ 01:01:54 Player: eldritch Result: Destroyed by S-27 Virus with Autogun Performance ------------- Evolutions (3) 1500 Regions Visited (7) 1400 Robots Destroyed (95) 475 Value Destroyed (2443) 2443 Prototype IDs (4) 80 Alien Tech Used (0) 0 Bonus (102) 102 TOTAL SCORE: 6000 Bonus ------- High Alert Combat Kills 8 Follower Combat Kills 112 Friendly Fire -18 Cogmind --------- Core Integrity 0/700 Matter 300/300 Energy 100/100 System Corruption 0% Temperature Cool (0) Movement Core (350) Ox6 Location -7/Lower Caves Parts ------- > --- POWER (1) -------- (None) > --- PROPULSION (4) --- Cesium-ion Thruster > --- UTILITY (6) ------ Medium Storage Unit Medium Storage Unit Advanced Visual Processing Unit System Shield > --- WEAPON (2) ------- Axe > --- INVENTORY (12) --- Makeshift Power Source Advanced Weight Redist. System Long-range Terrain Scanner Hacking Suite Hacking Suite System Shield System Shield Gauss Rifle Gauss Rifle Proton Missile Launcher Peak State ------------ > --- POWER ------------ Light Angular Momentum Engine > --- PROPULSION ------- Armored Huge Wheel Gravmag System Gravmag System > --- UTILITY ---------- Medium Storage Unit Medium Storage Unit Advanced Weight Redist. System Advanced Visual Processing Unit Hacking Suite System Shield > --- WEAPON ----------- Gauss Rifle Precision Assault Rifle > --- INVENTORY -------- Improved Deuterium Engine Cesium-ion Thruster Advanced Weight Redist. System Advanced Sensor Array Long-range Terrain Scanner Hacking Suite Hacking Suite System Shield System Shield Arc Projector Gauss Rifle Improved Grenade Launcher [Rating: 48] Favorites ----------- Power Improved Deuterium Engine Engine Improved Deuterium Engine Propulsion Carbon-fiber Leg Treads Light Treads Leg Carbon-fiber Leg Wheel Wheel Hover Unit Gravmag System Flight Unit Cesium-ion Thruster Utility Large Storage Unit Device Long-range Sensor Array Storage Large Storage Unit Processor Advanced Visual Processing Unit Hackware System Shield Protection Light Armor Plating Weapon Gauss Rifle Energy Gun EM Pulse Gun Ballistic Gun Gauss Rifle Launcher Proton Missile Launcher Special Weapon Mining Laser Slashing Weapon Axe Build | -11 -10 -9 -9 -8 -7 -7 -7 ------- Run | Scr Mat Mat Sto Mat Fac Low Low Slots Evolved 6 | . . 2 . 2 2 . . Power . | . . . . . . . . Propulsion 2 | . . . . 1 1 . . Utility 4 | . . 2 . 1 1 . . Weapon . | . . . . . . . . Parts Attached 136 | . 11 21 21 30 41 5 7 Power 13 | . 3 1 1 3 5 . . Engine 13 | . 3 1 1 3 5 . . Core . | . . . . . . . . Reactor . | . . . . . . . . Propulsion 39 | . . 11 4 8 15 . 1 Treads 8 | . . 1 3 3 1 . . Leg 11 | . . 3 . 4 4 . . Wheel 9 | . . 7 1 . 1 . . Hover 2 | . . . . . 2 . . Flight 9 | . . . . 1 7 . 1 Utility 31 | . 3 3 6 9 9 1 . Device 7 | . 1 . 2 2 1 1 . Storage 6 | . 2 1 . 1 2 . . Processor 3 | . . 1 . 1 1 . . Hackware 2 | . . . . . 2 . . Protection 13 | . . 1 4 5 3 . . Artifact . | . . . . . . . . Weapon 53 | . 5 6 10 10 12 4 6 Energy Gun 16 | . 4 3 5 1 3 . . Energy Cannon . | . . . . . . . . Ballistic Gun 19 | . 1 2 3 7 6 . . Ballistic Cannon . | . . . . . . . . Launcher 8 | . . . . 2 1 3 2 Special Weapon 3 | . . 1 2 . . . . Impact Weapon . | . . . . . . . . Slashing Weapon 7 | . . . . . 2 1 4 Piercing Weapon . | . . . . . . . . Special Melee Weapon . | . . . . . . . . Unidentified Prototypes 4 | . . 1 . 2 1 . . Parts Lost 32 | . 1 2 9 2 9 1 8 Power 3 | . . . . . 2 . 1 Propulsion 11 | . . 1 3 . 3 1 3 Utility 8 | . . . 3 1 2 . 2 Weapon 10 | . 1 1 3 1 2 . 2 Highest Loss Streak 7 | . 1 1 6 1 7 2 5 Average Slot Usage (%) 95 | . 93 99 97 99 94 92 79 Engine 9 | . 14 11 11 9 6 7 6 Treads 2 | . . 2 13 4 . . . Leg 14 | . 28 4 . 22 9 23 10 Wheel 3 | . . 14 7 . 2 . . Flight 2 | . . . . . 12 . 3 Device 5 | . 5 . 8 8 4 7 7 Storage 21 | . 17 32 24 22 16 15 15 Processor 6 | . . 8 . . 8 15 15 Hackware 3 | . . . . . 12 7 7 Protection 5 | . . 1 9 13 1 . . Energy Gun 7 | . 25 9 14 4 1 . . Ballistic Gun 7 | . 2 11 6 13 8 . . Slashing Weapon 2 | . . . . . 4 14 6 Naked Turns . | . . . . . . . . Heaviest Build 78 | 12 24 53 53 72 78 41 41 Greatest Support 60 | 20 20 26 40 60 45 45 45 Greatest Overweight (x) 10 | . 1 5 5 3 10 . 6 Average Overweight (x) . | . . 2 3 . . . 1 Largest Inventory Capacity 22 | . 10 16 16 22 22 12 12 Average Capacity 14 | . 6 15 16 18 13 12 12 Most Carried 22 | . 7 16 16 22 22 12 12 Average Carried 13 | . 6 15 15 18 13 11 11 Final Capacity 22 | 6 10 16 16 22 12 12 12 Final Carried 22 | 6 7 15 16 22 12 12 10 Class Distribution -------------------- 47% | Scavenger-Mutant 35% | Mutant 7% | Hacker-Mutant 5% | Hacker-Sprinter 3% | Hauler-Mutant Dominant Class ---------------- Mutant | -10/Materials Mutant | -9/Materials Scavenger-Mutant | -9/Storage Scavenger-Mutant | -8/Materials Hacker-Mutant | -7/Factory Scavenger-Mutant | -7/Lower Caves Mutant | -7/Lower Caves Resources | -11 -10 -9 -9 -8 -7 -7 -7 ----------- Run | Scr Mat Mat Sto Mat Fac Low Low Matter Collected 2161 | 157 90 373 157 507 618 122 137 Remotely . | . . . . . . . . Salvage Created 3717 | . 263 571 925 861 768 87 242 Parts 227 | . 28 30 52 58 48 9 2 Haulers Intercepted 9 | . . 2 1 3 3 . . Recyclers Shooed 3 | . 1 . 1 1 . . . Parts Field Recycled . | . . . . . . . . Retrieved Matter . | . . . . . . . . Parts Self-Destructed 6 | . . . . . . 5 1 Prevented 2 | . . . . . . 1 1 Kills | -11 -10 -9 -9 -8 -7 -7 -7 ------- Run | Scr Mat Mat Sto Mat Fac Low Low Combat Hostiles Destroyed 68 | . 10 6 14 18 11 6 3 Melee 1 | . . . . . 1 . . Guns 45 | . 9 6 12 11 7 . . AOE 19 | . . . 1 6 3 6 3 Classes Destroyed 13 | . 4 3 2 1 3 . . Worker 5 | . 1 1 1 1 1 . . Builder 3 | . . . 2 . 1 . . Hauler 9 | . . 2 1 3 3 . . Recycler 4 | . . 1 1 1 1 . . Operator 1 | . . . . . 1 . . Watcher 4 | . 2 1 . . 1 . . Swarmer 28 | . 9 . . 6 4 6 3 Grunt 19 | . 1 4 8 6 . . . Brawler 1 | . . . 1 . . . . Duelist 2 | . . . . . 2 . . Sentry 14 | . . 2 5 5 2 . . Hunter 2 | . . . . 1 1 . . Programmer 2 | . . . . . 2 . . Decomposer 1 | . . . . . . . 1 Best Kill Streak 8 | . 5 3 8 6 5 3 3 Combat Bots Only 5 | . 3 2 5 4 4 3 3 Max Kills in Single Turn 4 | . 2 2 4 3 3 2 1 Gunslinging 1 | . . . . . 1 . . Exploded 3 | . . . 1 2 3 2 1 Melee 1 | . . . . . 1 . . Uniques/NPCs Destroyed . | . . . . . . . . Combat | -11 -10 -9 -9 -8 -7 -7 -7 -------- Run | Scr Mat Mat Sto Mat Fac Low Low Damage Taken 5371 | . 277 437 1258 833 1761 258 547 Core 1156 | . 76 85 224 62 446 51 212 Absorbed by Shields . | . . . . . . . . Core Remaining (%) 69 | 100 69 . 22 88 . . . Volleys Fired 220 | . 33 38 54 42 42 5 6 Largest 2 | . 2 2 2 2 2 2 1 Hottest 100 | . 90 100 100 85 83 75 39 Shots Fired 394 | . 63 73 101 81 63 7 6 Gun 370 | . 63 70 97 78 62 . . Cannon . | . . . . . . . . Launcher 17 | . . . . 3 1 7 6 Special 7 | . . 3 4 . . . . Kinetic 166 | . 2 35 32 54 43 . . Thermal 35 | . 28 3 4 . . . . Explosive 8 | . . . . 3 1 4 . Electromagnetic 185 | . 33 35 65 24 19 3 6 Robot Hit Streak 27 | . 8 14 11 27 9 5 . Robot Miss Streak 4 | . 4 4 4 2 4 1 . Penetration Max 1 | . . . . 1 1 . . Secondary Targets 5 | . . . 3 1 1 . . Max Gunslinging Chain 1 | . . . 1 1 1 . . Shots Hit Robots 299 | . 33 50 79 64 66 3 4 Core Hits 154 | . 14 20 37 34 33 9 7 Critical Hits 6 | . . . 2 2 2 . . Critical Kills . | . . . . . . . . Critical Parts Destroyed 6 | . . . 2 2 2 . . Melee Attacks 27 | . . . . . 23 . 4 Impact . | . . . . . . . . Slashing 27 | . . . . . 23 . 4 Piercing . | . . . . . . . . Sneak Attacks 6 | . . . . . 5 . 1 Combat Hostiles . | . . . . . . . . Follow-up Attacks 3 | . . . . . 3 . . Damage Inflicted 7240 | . 502 831 1315 1542 2186 341 523 Guns 4448 | . 441 738 1222 1120 927 . . Cannons . | . . . . . . . . Explosions 1332 | . 61 69 93 422 167 341 179 Melee 1419 | . . . . . 1075 . 344 Ramming 41 | . . 24 . . 17 . . Kinetic 2251 | . 20 304 315 821 791 . . Thermal 386 | . 181 69 93 43 . . . Explosive 773 | . . . . 379 167 227 . Electromagnetic 2370 | . 301 434 907 299 136 114 179 Impact . | . . . . . . . . Slashing 1419 | . . . . . 1075 . 344 Piercing . | . . . . . . . . Highest Corruption . | . . . . . . . . Average Corruption . | . . . . . . . . Corruption Purged . | . . . . . . . . Overload Shots . | . . . . . . . . Overflow Damage 454 | . 9 20 . 15 348 3 59 Projectiles . | . . . . . . . . Explosions 47 | . 9 20 . 15 . 3 . Melee 407 | . . . . . 348 . 59 Knockbacks . | . . . . . . . . Impact . | . . . . . . . . Kinetic . | . . . . . . . . Secondary . | . . . . . . . . Self-Inflicted Damage 141 | . 7 35 4 43 8 44 . Shots 6 | . 1 1 1 1 . 2 . Rammed 4 | . . 1 . . 3 . . Targets Rammed 4 | . . 1 . . 3 . . Kicked . | . . . . . . . . Crushed . | . . . . . . . . Highest Temperature 493 | . 240 92 493 24 41 . . Average Temperature 73 | . 82 30 126 9 12 . . Received Heat Transfer 1179 | . 48 177 534 315 105 . . Effects 3 | . . . 3 . . . . Shutdowns 1 | . . . 1 . . . . Energy Bleed 1 | . . . 1 . . . . Interference 1 | . . . 1 . . . . Siege Activations . | . . . . . . . . Robots Corrupted 3 | . 1 . 1 1 . . . Combat Hostiles 3 | . 1 . 1 1 . . . Parts Fried 12 | . 4 2 2 1 . . 3 Impact Corruptions . | . . . . . . . . Robots Melted . | . . . . . . . . Combat Hostiles . | . . . . . . . . Parts Melted . | . . . . . . . . Heat Transferred 684 | . 434 100 100 50 . . . Parts Sabotaged . | . . . . . . . . Parts Stolen . | . . . . . . . . Parts Stripped . | . . . . . . . . Power Chain Reactions 5 | . 2 1 1 1 . . . Missiles Intercepted . | . . . . . . . . Alert | -11 -10 -9 -9 -8 -7 -7 -7 ------- Run | Scr Mat Mat Sto Mat Fac Low Low Peak Influence 506 | . 155 97 272 506 338 . . Average Influence 157 | . 50 40 135 272 184 . . Maximum Alert Level 2 | . . . 1 2 1 . . Low Security (%) 68 | . 100 100 91 24 64 . . Level 1 31 | . . . 8 74 35 . . Level 2 . | . . . . 1 . . . Level 3 . | . . . . . . . . Level 4 . | . . . . . . . . Level 5 . | . . . . . . . . High Security . | . . . . . . . . Max Security . | . . . . . . . . Squads Dispatched 11 | . 1 3 2 2 3 . . Investigation 2 | . 1 . 1 . . . . Extermination 1 | . . . . . 1 . . Reinforcement 8 | . . 3 1 2 2 . . Assault . | . . . . . . . . Garrison . | . . . . . . . . Intercept . | . . . . . . . . Construction Impeded . | . . . . . . . . Haulers Reinforced 1 | . . . . . 1 . . Stealth | -11 -10 -9 -9 -8 -7 -7 -7 --------- Run | Scr Mat Mat Sto Mat Fac Low Low Distress Signals 7 | . 1 . 3 3 . . . Communications Jammed . | . . . . . . . . Distress Signals . | . . . . . . . . Times Spotted 125 | . 17 18 19 36 23 6 6 Peak Tracking Total 7 | . 4 5 7 6 5 3 4 Tactical Retreats 11 | . 2 4 . 1 4 . . Traps | -11 -10 -9 -9 -8 -7 -7 -7 ------- Run | Scr Mat Mat Sto Mat Fac Low Low Traps Triggered 3 | . 1 . . . 2 . . Indirectly . | . . . . . . . . Trap Hack Attempts . | . . . . . . . . Triggered . | . . . . . . . . Disarmed . | . . . . . . . . Reprogrammed . | . . . . . . . . Reused . | . . . . . . . . Traps Extracted . | . . . . . . . . Installed . | . . . . . . . . Triggered . | . . . . . . . . Machines | -11 -10 -9 -9 -8 -7 -7 -7 ---------- Run | Scr Mat Mat Sto Mat Fac Low Low Machines Disabled 4 | . 1 . . 3 . . . Max in Single Turn 1 | . 1 . . 1 . . . Garrison Access 2 | . . . 1 1 . . . Machines Sabotaged . | . . . . . . . . Garrisons Compromised . | . . . . . . . . Overloaded Fab Kills . | . . . . . . . . Fab Network Shutdowns . | . . . . . . . . Hacking | -11 -10 -9 -9 -8 -7 -7 -7 --------- Run | Scr Mat Mat Sto Mat Fac Low Low Machines Accessed 16 | . 4 3 2 4 2 1 . Terminals 10 | . 4 2 1 2 1 . . Fabricators . | . . . . . . . . Repair Stations 2 | . . . . 1 1 . . Recycling Units . | . . . . . . . . Scanalyzers 1 | . . 1 . . . . . Garrison Access 2 | . . . 1 1 . . . Total Hacks 43 | . 14 10 4 10 4 1 . Successful 26 | . 9 7 3 4 2 1 . Failed 17 | . 5 3 1 6 2 . . Catastrophic 2 | . 1 . . 1 . . . Database Lockouts . | . . . . . . . . Manual 23 | . 8 5 3 5 2 . . Terminals 30 | . 14 5 3 6 2 . . Fabricators . | . . . . . . . . Repair Stations 4 | . . . . 2 2 . . Recycling Units . | . . . . . . . . Scanalyzers 5 | . . 5 . . . . . Garrison Access 3 | . . . 1 2 . . . Terminal Hacks 10 | . 6 1 1 1 . 1 . Open Door 1 | . . . . . . 1 . Level Access Points 1 | . . . 1 . . . . Branch Access Points 1 | . 1 . . . . . . Terminal Index 1 | . 1 . . . . . . Alert Level 1 | . . . . 1 . . . Unreport Threat 3 | . 3 . . . . . . Recall Reinforcements 1 | . . 1 . . . . . Zone Layout 1 | . 1 . . . . . . Fabricator Hacks . | . . . . . . . . Repair Station Hacks 4 | . . . . 2 2 . . Scan Component 2 | . . . . 1 1 . . Repair 2 | . . . . 1 1 . . Recycling Unit Hacks . | . . . . . . . . Scanalyzer 5 | . . 5 . . . . . Insert Component 3 | . . 3 . . . . . Analyze 2 | . . 2 . . . . . Garrison Access Hacks 2 | . . . 1 1 . . . Seal Access 2 | . . . 1 1 . . . Unauthorized Hacks 12 | . 7 2 3 . . . . Terminals 5 | . 3 1 1 . . . . Track 4 | . 2 1 1 . . . . Botnet 1 | . 1 . . . . . . Fabricators . | . . . . . . . . Repair Stations . | . . . . . . . . Recycling Units . | . . . . . . . . Scanalyzers . | . . . . . . . . Garrison Access . | . . . . . . . . Data Cores Recovered . | . . . . . . . . Used . | . . . . . . . . Hacking Detections 13 | . 4 3 1 3 2 . . Full Trace Events 1 | . . 1 . . . . . Feedback Events . | . . . . . . . . Feedback Blocked . | . . . . . . . . Robot Schematics Acquired . | . . . . . . . . Robots Built . | . . . . . . . . Matter . | . . . . . . . . Time . | . . . . . . . . Total Robot Build Rating . | . . . . . . . . Part Schematics Acquired 2 | . . 2 . . . . . Parts Built . | . . . . . . . . Matter . | . . . . . . . . Time . | . . . . . . . . Total Part Build Rating . | . . . . . . . . Parts Repaired 2 | . . . . 1 1 . . Time 63 | . . . . 44 19 . . Parts Recycled . | . . . . . . . . Recycled Matter . | . . . . . . . . Retrieved Matter . | . . . . . . . . Retrieved Components . | . . . . . . . . Parts Scanalyzed 2 | . . 2 . . . . . Part Schematics Acquired 2 | . . 2 . . . . . Parts Damaged . | . . . . . . . . Bothacking | -11 -10 -9 -9 -8 -7 -7 -7 ------------ Run | Scr Mat Mat Sto Mat Fac Low Low Used RIF Installer . | . . . . . . . . Robots Hacked . | . . . . . . . . Non-combat . | . . . . . . . . Combat . | . . . . . . . . Robot Hacks Applied . | . . . . . . . . Relay Couplers Released 1 | . . . 1 . . . . Machine Destruction 1 | . . . 1 . . . . Robots Rewired . | . . . . . . . . Allies Hacked . | . . . . . . . . Hacks Repelled . | . . . . . . . . Allies | -11 -10 -9 -9 -8 -7 -7 -7 -------- Run | Scr Mat Mat Sto Mat Fac Low Low Total Allies 2 | . . . 2 . . . . Largest Group 2 | . . . 2 2 . . . Highest-Rated Group 62 | . . . 62 62 . . . Highest-Rated Ally 31 | . . . 31 31 . . . Total Orders . | . . . . . . . . Ally Attacks 21 | . . . . 21 . . . Total Damage 332 | . . . . 332 . . . Kills 4 | . . . . 4 . . . Allies Corrupted . | . . . . . . . . Allies Melted . | . . . . . . . . Intel | -11 -10 -9 -9 -8 -7 -7 -7 ------- Run | Scr Mat Mat Sto Mat Fac Low Low Robot Analysis Total . | . . . . . . . . Derelict Logs Recovered 2 | . . . . . . 2 . Drone Launches . | . . . . . . . . Drone Recoveries . | . . . . . . . . Exploration | -11 -10 -9 -9 -8 -7 -7 -7 ------------- Run | Scr Mat Mat Sto Mat Fac Low Low Turns Passed 6035 | . 662 1033 602 1478 1245 464 551 Spaces Moved 3831 | 1 417 618 244 784 1079 369 319 Core 3 | . . . . . 1 . 2 Treads 230 | . . . 127 103 . . . Legs 2233 | 1 417 83 . 681 365 369 317 Wheels 925 | . . 535 117 . 273 . . Hover 1 | . . . . . 1 . . Flight 439 | . . . . . 439 . . Fastest Speed 28 | 120 120 100 120 150 28 120 120 Average Speed 121 | 120 123 117 161 151 81 120 161 Slowest Speed 550 | 120 150 180 200 210 550 120 350 Overloaded Moves . | . . . . . . . . Propulsion Burnouts . | . . . . . . . . Robots Hopped 3 | . . . . . 3 . . Cave-ins Triggered . | . . . . . . . . Exploration Rate (%) 38 | 1 75 30 45 60 29 50 19 Regions Visited 7 Branch Regions 3 Pre-discovered Areas . | . . . . . . . . Known Exits Taken 1 | . . . 1 . . . . Unknown Exits Taken 6 | 1 1 1 . 1 1 1 . Scrap Searched 1 | . . . . . . . 1 Spaces Dug 6 | . . 3 3 . . . . Terrain Destroyed 82 | . 4 6 6 20 6 40 . Melee . | . . . . . . . . Projectile 6 | . . 3 3 . . . . AOE 76 | . 4 3 3 20 6 40 . Actions | -11 -10 -9 -9 -8 -7 -7 -7 --------- Run | Scr Mat Mat Sto Mat Fac Low Low Total 4780 | . 505 846 344 1003 1362 381 339 Wait 429 | . 27 146 19 97 137 . 3 Move 3818 | . 416 617 243 783 1072 368 319 Hop 3 | . . . . . 3 . . Pick Up 59 | . 5 13 4 21 14 2 . Fast Attach 37 | . 5 3 4 10 15 . . Attach 27 | . . 3 5 3 13 1 2 Detach 1 | . . . . . 1 . . Swap 72 | . 6 15 12 17 13 4 5 Drop 88 | . 13 10 3 30 31 1 . Fire 220 | . 33 38 54 42 42 5 6 Melee 22 | . . . . . 18 . 4 Ram 4 | . . 1 . . 3 . . Kick . | . . . . . . . . Crush . | . . . . . . . . Escape Stasis . | . . . . . . . . Rewire . | . . . . . . . . Trap . | . . . . . . . . Miscellaneous . | . . . . . . . . Route ------- -11/Scrapyard -10/Materials (discovered 3 exits: *Mat x2 / *Min) -9/Materials -9/Storage -8/Materials -7/Factory -7/Lower Caves -7/Lower Caves (discovered 1 exit: [*Fac]) History --------- Turn | Location | Event 1 | -11/Scrapyard | Discovered new exit (range 0) 1 | -11/Scrapyard | Entered Materials 158 | -10/Materials | Discovered new exit (range 13) 259 | -10/Materials | Identified exit to Mines 330 | -10/Materials | Build established: Mutant 453 | -10/Materials | Discovered new exit (range 3) 641 | -10/Materials | Discovered new exit (range 16) 663 | -10/Materials | Entered another Materials area 663 | -9/Materials | Evolved 2 slots: Utility x2 966 | -9/Materials | Discovered new exit (range 11) 1696 | -9/Materials | Entered Storage 1707 | -9/Storage | Identified exit to Materials 1845 | -9/Storage | Lost 6 parts (2n2u2w) 1922 | -9/Storage | Core integrity fell below 50% 2252 | -9/Storage | Build established: Scavenger-Mutant 2271 | -9/Storage | Met a pair of Derelict thieves 2298 | -9/Storage | Entered Materials 2298 | -8/Materials | Accompanied by 2 allies 2298 | -8/Materials | Evolved 2 slots: Propulsion x1, Utility x1 3661 | -8/Materials | Discovered new exit (range 10) 3765 | -8/Materials | Repaired Gauss Rifle 3776 | -8/Materials | Entered Factory 3776 | -7/Factory | Evolved 2 slots: Propulsion x1, Utility x1 4015 | -7/Factory | Repaired Imp. Grenade Launcher 4230 | -7/Factory | Build established: Hacker-Sprinter 4534 | -7/Factory | Build established: Hacker-Mutant 4664 | -7/Factory | Core integrity fell below 50% 4706 | -7/Factory | Lost 7 parts (2p2n1u2w) 4893 | -7/Factory | Discovered new exit (range 17) 4997 | -7/Factory | Build established: Scavenger-Mutant 5021 | -7/Factory | Entered Lower Caves 5112 | -7/Lower Caves | Learned Factory stockpile data 5337 | -7/Lower Caves | Learned Factory terminal intel 5417 | -7/Lower Caves | Discovered new exit (range 17) 5485 | -7/Lower Caves | Entered another Lower Caves area 5658 | -7/Lower Caves | Lost 3 parts (2n1w) 5679 | -7/Lower Caves | Discovered new exit (range 3) 5912 | -7/Lower Caves | Build established: Mutant 6015 | -7/Lower Caves | Core integrity fell below 20% 6036 | -7/Lower Caves | Destroyed by S-27 Virus with Autogun Last Messages --------------- 05938_ Destroyed Carbon-fiber Leg. 05938_ Destroyed Imp. Melee Analysis Suite. 05938_ Destroyed Imp. Deuterium Engine. 05941_ Sneak attack on L-41 Fighter. 05941_ L-41 Fighter destroyed. 05943_ CQ-CTB(k) breaks down the debris. 05943_ Acquired 33 matter. 05949_ Sneak attack on 7N-HWC(b). 05949_ 7N-HWC(b) destroyed. 05957_ Sneak attack on CQ-CTB(k). 05957_ CQ-CTB(k) destroyed. 06010_ C-30 ARC bursts open, deploying its payload. 06010_ S-27 Virus unfolds itself. 06023_ Chainsword destroyed. 06027_ S-27 Virus suffers critical hit. 06027_ S-27 Virus destroyed. 06027_ Imp. Deuterium Engine destroyed. 06028_ Carbon-fiber Leg destroyed. 06034_ Lrn. Sensor Array destroyed. 06036_ Imp. Melee Analysis Suite destroyed. Map ----- +----------------------------------------------------+ | ?????????????????????????????????????????????????? | | ?????????????????????????????????????????????????? | | ?????????????????????????????????????????????????? | | ?????????????????????????????????????????????????? | | ?????????????????????????????????????????????????? | | ?????????????????????????????????????????????????? | | ?????????????????????????????????????????????????? | | ?????????????????????????????????????????????????? | | ?????????????????????##########??????????????????? | | ?????????????????????# [] [ #??????????????????? | | ?????????????????????# """ #??????????????????? | | ?????????????????????# """"" #??????????????????? | | ?????????????????????# """"" #??????????????????? | | ?????????????????????# " " #??????????????????? | | ???????????????####??# """ """#??????????????????? | | ??????????????##% ##?# """ """##?????????????????? | | ??????????????#%% ### """ """ ###????????##?????? | | ??????????????# % % ## #???????# ##????? | | ??????????????# ## ## #??????# #????? | | ??????????????# ##### ## < ## #????## #????? | | ?????????###### %# ##??# ## # #???## #????? | | ??????#### # % # #??# #### ## ##### #?????? | | ?????## % #### ##### #?????? | | ????## ## ##?#[#### ########?? | | ????#% ### #?? | | ????# % @ % % #?? | | ????###### %####% ### ##### #?? | | ?????????## "#??# ##### #"" "" ""# #?? | | ??????????# #??# #???# T #?? | | ??????????#### %% ##?# ##??# #" #?? | | ?????????????# % #?#ss #??# # #?? | | ?????????????# % %#?# #??# + #?? | | ?????????????# % % ###=%[#### # # #?? | | ?????????????#% %% s ## # #"""" # #?? | | ???####??????# #"""" + #?? | | ???# ######## ## #"""" "" # #?? | | ???# % % #### ######## ## #?? | | ???# ## % ##??# #?? | | ??## ##??# # #?? | | ??# % #??# #################?? | | ?# ####### ### ##?????????????????? | | ###?????###### #???????????????????? | | #?????????????## #???????????????????? | | ###???????????????## ### #???????????????????? | | ???????????????????# #######???????????????????? | | ???????????????????# ###??????????????????????? | | ??????????????????## ##?????????????????????? | | ???????????????#### ##????????????????????? | | ???????????????# #????????????????????? | | ??????????????# #???????????????????? | +----------------------------------------------------+ Best States ------------- Heat Dissipation 45 Energy Generation 18 Energy Capacity 465 Matter Stores 300 Matter Capacity 300 Sight Range 20 Robot Scan Range 20 Terrain Scan Density 10 Additional Mass Support 9 Armor Coverage 450 Evasion (%) 64 Melee Accuracy 6 Recoil Reduction 3 Salvage Targeting 1 Offensive Hacking 10 Defensive Hacking 10 Item Schematics ----------------- Hacking Suite | -9/Materials | Scanalyzed System Shield | -9/Materials | Scanalyzed Robot Schematics ------------------ None Fabricated ------------ Nothing Alien Tech Used ----------------- None Achievements -------------- None Challenges ------------ None Game ------ Seed ShieldGravmagWings Manual? 0 Play Time 00:54:23 Cumulative 216.3 hours Start 2020.03.08 @ 00:07:16 End 2020.03.08 @ 01:01:54 Sessions 1 Manual Loads 0 Difficulty Rogue Special Mode None Game No. 491 Rogue 491 Adventurer 0 Explorer 0 Win Type - Total 4 Types 3/0/0/1/0/0/0 Lore% 63 Gallery% 66 Achievement% 56 Wizard Run 0 Options --------- ASCII 0 Keyboard 0 Movement Arrows Keybinds 0 Fullscreen 1 Font 16/SmallcapsGlow Map View 75x55 Tactical HUD 1 Map Filters NONE Filters NONE Steam 1 RUN: 78517166-85dd-4549-950d-33c8661d268b